bitfinex-derivatives/quotes_BTCF0:USTF0_20251110
["timestamp","ask_amount","ask_price","bid_price","bid_amount"]
[1762789041423,0.5268802,105360.0,105350.0,0.15694919]
[1762789041621,0.1660802,105360.0,105350.0,0.51774919]
[1762789041821,0.00229102,105360.0,105350.0,0.51774919]
[1762789042021,0.00229102,105360.0,105350.0,0.51476392]
[1762789042325,0.2596462,105360.0,105350.0,0.05901882]
[1762789042517,0.2596462,105360.0,105350.0,0.06200032]
[1762789042823,0.6204462,105360.0,105350.0,0.06200032]
[1762789043026,0.6204462,105360.0,105350.0,0.01789032]
[1762789044228,0.6204462,105360.0,105350.0,0.01489032]
[1762789044524,0.6204462,105360.0,105350.0,0.15594542]
[1762789044716,0.6204463,105360.0,105350.0,0.15594542]
[1762789045420,0.6204463,105360.0,105350.0,0.15494542]
[1762789046220,0.1647102,105360.0,105350.0,0.15494542]
[1762789046622,0.2596463,105360.0,105350.0,0.15494542]
[1762789046915,0.00229102,105360.0,105350.0,0.51574542]
[1762789047120,0.00229102,105360.0,105350.0,0.51276392]
[1762789047313,0.02366102,105360.0,105350.0,0.51276392]
[1762789047514,0.00229102,105360.0,105350.0,0.51276392]
[1762789048029,0.02366102,105360.0,105350.0,0.51276392]
[1762789048228,0.04639102,105360.0,105350.0,0.51276392]
[1762789048424,0.00229102,105360.0,105350.0,0.51276392]
[1762789048627,0.00014246,105370.0,105360.0,0.05724]
[1762789048822,0.00234049,105370.0,105360.0,0.5129761]
[1762789049220,0.00014246,105370.0,105360.0,0.7502561]
[1762789049426,0.61812328,105400.0,105390.0,0.1390186]
[1762789049724,0.62040084,105400.0,105390.0,0.04411]
[1762789049935,0.1390086,105390.0,105380.0,0.1521573]
[1762789050127,0.25952581,105390.0,105380.0,0.1521573]
[1762789050635,0.16461721,105390.0,105380.0,0.5129573]
[1762789050927,0.00219803,105390.0,105380.0,0.5129573]
[1762789051128,0.38539199,105400.0,105390.0,0.1390186]
[1762789051431,0.38759002,105400.0,105390.0,0.1390186]
[1762789051631,0.38959002,105400.0,105390.0,0.1390186]
[1762789051834,0.50721962,105400.0,105390.0,0.1390186]
[1762789052130,0.6255388,105400.0,105390.0,0.1390186]
[1762789053026,0.6225388,105400.0,105390.0,0.1390186]
[1762789053927,0.1390086,105390.0,105380.0,0.05724]
[1762789054226,0.16461721,105390.0,105380.0,0.1521538]
[1762789054433,0.14120663,105390.0,105380.0,0.5129538]
[1762789055327,0.00219803,105390.0,105380.0,0.5129538]
[1762789055630,0.00319803,105390.0,105380.0,0.5129538]
[1762789056437,0.001,105390.0,105380.0,0.86851298]
[1762789056730,0.003,105390.0,105380.0,0.7501938]
[1762789057121,0.003,105390.0,105380.0,0.5129538]
[1762789057325,0.00319803,105390.0,105380.0,0.5129538]
[1762789057536,0.00319803,105390.0,105380.0,0.5139538]
[1762789058035,0.09810663,105390.0,105380.0,0.5139538]
[1762789058231,0.09710663,105390.0,105380.0,0.5159538]
[1762789058531,0.25952581,105390.0,105380.0,0.5159538]
[1762789058731,0.14188721,105390.0,105380.0,0.5159538]
[1762789058923,0.00219803,105390.0,105380.0,0.5149538]
[1762789059125,0.09710663,105390.0,105380.0,0.5149538]
[1762789059439,0.02356803,105390.0,105380.0,0.5149538]
[1762789059829,0.11847663,105390.0,105380.0,0.5149538]
[1762789060020,0.62032581,105390.0,105380.0,0.05724]
[1762789060226,0.16461721,105390.0,105380.0,0.5139576]
[1762789061130,0.25952581,105390.0,105380.0,0.5139576]
[1762789061828,0.25952581,105390.0,105380.0,0.1531576]
[1762789062329,0.09710663,105390.0,105380.0,0.5139576]
[1762789062537,0.11847663,105390.0,105380.0,0.5139576]
[1762789062734,0.14188721,105390.0,105380.0,0.5139576]
[1762789063034,0.25952581,105390.0,105380.0,0.5139576]
[1762789063636,0.12051721,105390.0,105380.0,0.5139576]
[1762789063834,0.14188721,105390.0,105380.0,0.5139576]
[1762789064233,0.25952581,105390.0,105380.0,0.5139576]
[1762789064631,0.25952581,105390.0,105380.0,0.05824]
[1762789065335,0.25952581,105390.0,105380.0,0.1531576]
[1762789065531,0.62032581,105390.0,105380.0,0.001]
[1762789066328,0.1490176,105380.0,105370.0,0.00014246]
[1762789066527,0.63033481,105380.0,105370.0,0.00014246]
[1762789067642,0.63043031,105380.0,105370.0,0.00214246]
[1762789068438,0.51211113,105380.0,105370.0,0.00214246]
[1762789068630,0.63043031,105380.0,105370.0,0.00314246]
[1762789068830,0.1465957,105360.0,105350.0,0.00990882]
[1762789069132,0.26711291,105360.0,105350.0,0.03205882]
[1762789069338,0.26711291,105360.0,105350.0,0.14972352]
[1762789069533,0.25955291,105360.0,105350.0,0.14972352]
[1762789069734,0.16461721,105360.0,105350.0,0.14972352]
[1762789069940,0.12051721,105360.0,105350.0,0.14972352]
[1762789070240,0.45587186,105370.0,105360.0,0.1535857]
[1762789070241,0.00014246,105370.0,105360.0,0.1535857]
[1762789070433,0.00234049,105370.0,105360.0,0.5143857]
[1762789070633,0.00234049,105370.0,105360.0,0.58203223]
[1762789070834,0.00014246,105370.0,105360.0,0.58203223]
[1762789071238,9.55e-05,105380.0,105370.0,0.1409167]
[1762789071434,9.55e-05,105380.0,105370.0,0.5017167]
[1762789071634,9.55e-05,105380.0,105370.0,0.56936323]
[1762789072841,9.55e-05,105380.0,105370.0,0.68768241]
[1762789073044,9.55e-05,105380.0,105370.0,0.68868241]
[1762789073236,9.55e-05,105380.0,105370.0,0.57036323]
[1762789073432,9.55e-05,105380.0,105370.0,0.40779]
[1762789073640,0.62006911,105380.0,105370.0,0.11441139]
[1762789073845,0.62006911,105380.0,105370.0,0.09169139]
[1762789074039,0.62006911,105380.0,105370.0,0.1414763]
[1762789074343,0.50174993,105380.0,105370.0,0.1434763]
[1762789074550,0.62006911,105380.0,105370.0,0.1434763]
[1762789074738,0.62006911,105380.0,105370.0,0.04855]
[1762789074928,0.52515271,105380.0,105370.0,0.1444768]
[1762789075129,0.25927051,105380.0,105370.0,0.1444768]
[1762789075342,0.25927051,105380.0,105370.0,0.21189819]
[1762789075738,0.14095133,105380.0,105370.0,0.21089819]
[1762789075945,0.16435271,105380.0,105370.0,0.21089819]
[1762789076143,0.09721153,105380.0,105370.0,0.20989819]
[1762789076641,0.14120153,105380.0,105370.0,0.20989819]
[1762789076835,0.14120153,105380.0,105370.0,0.11497139]
[1762789076836,0.25952071,105380.0,105370.0,0.11497139]
[1762789077043,0.25952071,105380.0,105370.0,0.20989839]
[1762789077539,0.16460271,105380.0,105370.0,0.20989839]
[1762789078047,0.25952071,105380.0,105370.0,0.11497139]
[1762789078446,0.25952071,105380.0,105370.0,0.20989849]
[1762789078943,0.16460271,105380.0,105370.0,0.20989849]
[1762789079149,0.25952081,105380.0,105370.0,0.20989849]
[1762789079541,0.25952081,105380.0,105370.0,0.11497139]
[1762789079738,0.62032081,105380.0,105370.0,0.002]
[1762789079945,0.62032081,105380.0,105370.0,0.1199671]
[1762789080146,0.62032081,105380.0,105370.0,0.1422471]
[1762789080850,0.62032081,105380.0,105370.0,0.04732]
[1762789081046,0.62032081,105380.0,105370.0,0.002]
[1762789081953,0.62032081,105380.0,105370.0,0.04732]
[1762789082147,0.04628353,105380.0,105370.0,0.1422471]
[1762789082352,0.00229353,105380.0,105370.0,0.5030471]
[1762789082538,0.00229353,105380.0,105370.0,0.57046849]
[1762789082739,0.09721163,105380.0,105370.0,0.57046849]
[1762789082940,0.25952081,105380.0,105370.0,0.20966849]
[1762789083150,0.25952081,105380.0,105370.0,0.1422471]
[1762789083344,0.16460271,105380.0,105370.0,0.20966849]
[1762789083960,0.25952071,105380.0,105370.0,0.57046849]
[1762789084147,0.16460271,105380.0,105370.0,0.20966849]
[1762789084452,0.25952071,105380.0,105370.0,0.20966849]
[1762789085044,0.25952071,105380.0,105370.0,0.11474139]
[1762789085654,0.04628353,105380.0,105370.0,0.20966839]
[1762789085846,0.16460271,105380.0,105370.0,0.20966839]
[1762789086154,0.25952061,105380.0,105370.0,0.20966839]
[1762789086554,0.25952061,105380.0,105370.0,0.11474139]
[1762789086750,0.62032061,105380.0,105370.0,0.142247]
[1762789086951,0.25952061,105380.0,105370.0,0.142247]
[1762789087251,0.62032061,105380.0,105370.0,0.142247]
[1762789087647,0.62032061,105380.0,105370.0,0.20966839]
[1762789088048,0.62032061,105380.0,105370.0,0.11474139]
[1762789089556,0.62032061,105380.0,105370.0,0.002]
[1762789090856,0.62032061,105380.0,105370.0,0.0969262]
[1762789091045,0.62032061,105380.0,105370.0,0.1422462]
[1762789091659,0.40708353,105380.0,105370.0,0.20982965]
[1762789091860,0.50200073,105380.0,105370.0,0.20982965]
[1762789092061,0.40708353,105380.0,105370.0,0.20982965]
[1762789092559,0.50200073,105380.0,105370.0,0.20982965]
[1762789092760,0.62031991,105380.0,105370.0,0.20982965]
[1762789093459,0.16460271,105380.0,105370.0,0.1422462]
[1762789093655,0.25952001,105380.0,105370.0,0.1422462]
[1762789094259,0.14120083,105380.0,105370.0,0.1422462]
[1762789094456,0.25952001,105380.0,105370.0,0.22672552]
[1762789094859,0.14120083,105380.0,105370.0,0.22672552]
[1762789095160,0.14120083,105380.0,105370.0,0.1422462]
[1762789095358,0.14120083,105380.0,105370.0,0.22672552]
[1762789095560,0.31469075,105380.0,105370.0,0.04732]
[1762789095861,0.31469075,105380.0,105370.0,0.11493885]
[1762789096053,0.67549075,105380.0,105370.0,0.11493885]
[1762789096554,0.67549075,105380.0,105370.0,0.06961885]
[1762789097162,0.67549075,105380.0,105370.0,0.16454515]
[1762789097556,0.67549075,105380.0,105370.0,0.06961885]
[1762789097760,0.67549075,105380.0,105370.0,0.16454515]
[1762789098756,0.68649075,105380.0,105370.0,0.06961885]
[1762789098965,0.68649075,105380.0,105370.0,0.002]
[1762789103366,0.1378563,105370.0,105360.0,0.00014246]
[1762789103565,0.67434425,105370.0,105360.0,0.00014246]
[1762789104460,0.67434425,105370.0,105360.0,0.15298776]
[1762789105065,0.67434425,105370.0,105360.0,0.00014246]
[1762789105262,0.67434425,105370.0,105360.0,0.00214246]
[1762789105768,0.67434425,105370.0,105360.0,0.00414246]
[1762789106362,0.50085433,105370.0,105360.0,0.06205246]
[1762789106564,0.67434425,105370.0,105360.0,0.06205246]
[1762789107163,0.67434425,105370.0,105360.0,0.02699246]
[1762789107368,0.67434425,105370.0,105360.0,0.00414246]
[1762789108669,0.67434425,105370.0,105360.0,0.06205246]
[1762789108866,0.67434425,105370.0,105360.0,0.02699246]
[1762789109169,0.67434425,105370.0,105360.0,0.15698776]
[1762789109371,0.31354425,105370.0,105360.0,0.15698776]
[1762789109668,0.67434425,105370.0,105360.0,0.15698776]
[1762789110364,0.67434425,105370.0,105360.0,0.00414246]
[1762789110665,0.67434425,105370.0,105360.0,0.07176131]
[1762789110874,0.67434425,105370.0,105360.0,0.00414246]
[1762789116976,0.67434425,105370.0,105360.0,0.02699246]
[1762789117369,0.67434425,105370.0,105360.0,0.00414246]
[1762789117568,0.67434425,105370.0,105350.0,0.00023729]
[1762789117569,0.1478653,105360.0,105350.0,0.00023729]
[1762789117767,0.68446665,105360.0,105350.0,0.00023729]
[1762789117967,0.1378743,105350.0,105340.0,0.06761885]
[1762789118272,0.68192225,105350.0,105340.0,0.06761885]
[1762789118776,0.68192225,105350.0,105340.0,0.09046885]
[1762789119175,0.68192225,105350.0,105340.0,0.07690745]
[1762789119778,0.50087233,105350.0,105340.0,0.22977075]
[1762789120072,0.67436225,105350.0,105340.0,0.07690745]
[1762789120276,0.67436225,105350.0,105340.0,0.19471075]
[1762789120472,0.1378833,105340.0,105330.0,0.12611885]
[1762789120672,0.31357125,105340.0,105330.0,0.22108115]
[1762789120863,0.67437125,105340.0,105330.0,0.12611885]
[1762789121070,0.68343876,105340.0,105330.0,0.23059148]
[1762789121567,0.57948546,105340.0,105330.0,0.23059148]
[1762789121876,0.00226554,105340.0,105330.0,0.59139148]
[1762789122270,0.02328554,105340.0,105330.0,0.59139148]
[1762789122573,0.04519554,105340.0,105330.0,0.59139148]
[1762789122978,0.14014884,105340.0,105330.0,0.59139148]
[1762789123174,0.14014884,105340.0,105330.0,0.52377263]
[1762789123477,0.50094884,105340.0,105330.0,0.16297263]
[1762789123677,0.31363876,105340.0,105330.0,0.2306016]
[1762789127070,0.14014884,105340.0,105330.0,0.2306016]
[1762789127270,0.31363876,105340.0,105330.0,0.2306016]
[1762789129677,0.31363876,105340.0,105330.0,0.1356393]
[1762789129873,0.67443876,105340.0,105330.0,0.1356393]
[1762789130078,0.1389423,105330.0,105320.0,0.23856952]
[1762789130382,0.67543025,105330.0,105320.0,0.23856952]
[1762789130680,0.67543025,105330.0,105320.0,0.24792222]
[1762789131181,0.67543025,105330.0,105320.0,0.1634429]
[1762789131378,0.67543025,105330.0,105320.0,0.1654429]
[1762789131582,0.67543025,105330.0,105320.0,0.1664429]
[1762789132181,0.50194033,105330.0,105320.0,0.1664429]
[1762789132368,0.67543025,105330.0,105320.0,0.25092222]
[1762789132876,0.04617803,105330.0,105320.0,0.25092222]
[1762789133073,0.31463025,105330.0,105320.0,0.61172222]
[1762789133480,0.21966795,105330.0,105320.0,0.61172222]
[1762789133677,0.31463025,105330.0,105320.0,0.61172222]
[1762789133872,0.21966795,105330.0,105320.0,0.61172222]
[1762789134478,0.31463025,105330.0,105320.0,0.61172222]
[1762789134985,0.21966795,105330.0,105320.0,0.61172222]
[1762789135191,0.17568795,105330.0,105320.0,0.61172222]
[1762789135784,0.21966795,105330.0,105320.0,0.61172222]
[1762789136080,0.45596927,105340.0,105320.0,0.61172222]
[1762789136081,0.38319997,105340.0,105330.0,0.05861]
[1762789136285,0.002408,105340.0,105330.0,0.58207064]
[1762789136689,0.046518,105340.0,105330.0,0.58207064]
[1762789136895,0.31496072,105340.0,105330.0,0.58207064]
[1762789137393,0.31496072,105340.0,105330.0,0.58307064]
[1762789137595,0.19890792,105340.0,105330.0,0.58307064]
[1762789137796,0.17589792,105340.0,105330.0,0.58307064]
[1762789138393,0.00020997,105340.0,105330.0,0.5153714]
[1762789138894,0.09489628,105340.0,105330.0,0.5153714]
[1762789139788,0.00020997,105340.0,105330.0,0.5153714]
[1762789139987,0.09489628,105340.0,105330.0,0.5153714]
[1762789140886,0.00020997,105340.0,105330.0,0.5153714]
[1762789141086,0.09489628,105340.0,105330.0,0.5153714]
[1762789141289,0.3608,105360.0,105350.0,0.1515549]
[1762789141589,0.14099434,105360.0,105350.0,0.4851095]
[1762789141895,0.14124393,105360.0,105350.0,0.5800544]
[1762789142082,0.23593024,105360.0,105350.0,0.5123549]
[1762789142491,0.23793024,105360.0,105350.0,0.5123549]
[1762789142689,0.14299434,105360.0,105350.0,0.5123549]
[1762789142898,0.14499434,105360.0,105350.0,0.5123549]
[1762789143082,0.23993024,105360.0,105350.0,0.5123549]
[1762789143288,0.14504353,105360.0,105350.0,0.5123549]
[1762789143587,0.12394353,105360.0,105350.0,0.5123549]
[1762789143787,0.23997943,105360.0,105350.0,0.5123549]
[1762789144092,0.14504353,105360.0,105350.0,0.5123549]
[1762789144296,0.00404919,105360.0,105350.0,0.5123549]
[1762789144487,0.09482877,105370.0,105360.0,0.1515459]
[1762789144488,0.00014246,105370.0,105360.0,0.1515459]
[1762789144693,0.00014246,105370.0,105360.0,0.57997468]
[1762789145087,0.09468631,105390.0,105380.0,0.1515279]
[1762789145396,0.09688434,105390.0,105380.0,0.57994622]
[1762789145597,0.19179324,105390.0,105380.0,0.57994622]
[1762789145799,0.09688434,105390.0,105380.0,0.57994622]
[1762789145985,0.19179324,105390.0,105380.0,0.57994622]
[1762789146189,0.19179324,105390.0,105380.0,0.21914622]
[1762789146190,0.23590324,105390.0,105380.0,0.21914622]
[1762789146492,0.14121693,105390.0,105380.0,0.21914642]
[1762789146698,0.09688434,105390.0,105380.0,0.21914642]
[1762789146891,0.00219803,105390.0,105380.0,0.21914642]
[1762789147294,0.04630803,105390.0,105380.0,0.57994642]
[1762789147483,0.09710713,105390.0,105380.0,0.5123281]
[1762789147683,0.12011713,105390.0,105380.0,0.5123281]
[1762789147888,0.12011713,105390.0,105380.0,0.1515281]
[1762789149494,0.14121713,105390.0,105380.0,0.1515281]
[1762789150695,0.67545897,105390.0,105380.0,0.02219]
[1762789150898,0.1390281,105380.0,105370.0,0.15167696]
[1762789151105,0.31466797,105380.0,105370.0,0.15167696]
[1762789151397,0.00219803,105380.0,105370.0,0.51247696]
[1762789151894,0.14122533,105380.0,105370.0,0.51247696]
[1762789152089,0.31566717,105380.0,105370.0,0.05675246]
[1762789152397,0.67646717,105380.0,105370.0,0.05675246]
[1762789152598,0.67546717,105380.0,105370.0,0.05675246]
[1762789152798,0.67746717,105380.0,105370.0,0.05675246]
[1762789153296,0.67746717,105380.0,105370.0,0.04404246]
[1762789153490,0.67746717,105380.0,105370.0,0.05675246]
[1762789153692,0.67746717,105380.0,105370.0,0.00014246]
[1762789153893,0.67546717,105380.0,105370.0,0.00014246]
[1762789154098,0.67846717,105380.0,105370.0,0.00014246]
[1762789154503,0.1390453,105360.0,105350.0,0.0349]
[1762789154700,0.1179543,105350.0,105340.0,0.4684591]
[1762789154895,0.67549417,105350.0,105340.0,0.1515591]
[1762789155090,0.67549417,105350.0,105340.0,0.1515633]
[1762789155294,0.67549417,105350.0,105340.0,0.05661]
[1762789155593,0.67549417,105350.0,105340.0,0.1515633]
[1762789155798,0.67549417,105350.0,105340.0,0.05661]
[1762789156189,0.1390633,105340.0,105330.0,0.05675246]
[1762789156396,0.67550317,105340.0,105330.0,0.05675246]
[1762789156600,0.67550317,105340.0,105330.0,0.15171476]
[1762789157004,0.62045818,105340.0,105330.0,0.15171476]
[1762789157300,0.62045818,105340.0,105330.0,0.05675246]
[1762789157600,0.62045818,105340.0,105330.0,0.15171476]
[1762789157796,0.62045818,105340.0,105330.0,0.05675246]
[1762789158001,0.50206133,105340.0,105330.0,0.05675246]
[1762789158192,0.62045818,105340.0,105330.0,0.15171476]
[1762789158398,0.62045818,105340.0,105330.0,0.05675246]
[1762789158597,0.50206133,105340.0,105330.0,0.15171486]
[1762789158801,0.62045818,105340.0,105330.0,0.15171486]
[1762789159599,0.62801818,105340.0,105330.0,0.04404246]
[1762789159800,0.62801818,105340.0,105330.0,0.00014246]
[1762789159998,0.62045818,105340.0,105330.0,0.15188486]
[1762789161000,0.62045818,105340.0,105330.0,0.05692246]
[1762789161505,0.62045818,105340.0,105330.0,0.00014246]
[1762789161698,0.1484724,105330.0,105320.0,0.06761832]
[1762789161898,0.1386214,105320.0,105310.0,0.02193912]
[1762789162099,0.73841313,105320.0,105310.0,7.912e-05]
[1762789163793,0.0949984,105290.0,105280.0,0.53607022]
[1762789164006,0.16424488,105290.0,105280.0,0.58991795]
[1762789164402,0.04584803,105290.0,105280.0,0.52229963]
[1762789164598,0.00219803,105290.0,105280.0,0.52229963]
[1762789164801,0.00227715,105290.0,105280.0,0.52229963]
[1762789165109,0.00227715,105290.0,105280.0,0.52629963]
[1762789165606,0.00327715,105290.0,105280.0,0.53129963]
[1762789169299,0.14192555,105290.0,105280.0,0.53129963]
[1762789169499,0.2603224,105290.0,105280.0,0.53129963]
[1762789169700,0.165324,105290.0,105280.0,0.53129963]
[1762789169904,0.00327715,105290.0,105280.0,0.53129963]
[1762789171110,0.00107912,105290.0,105280.0,0.64969648]
[1762789171310,0.00014246,105300.0,105290.0,0.1517784]
[1762789171507,0.00234049,105300.0,105290.0,0.1517784]
[1762789172503,0.00234049,105300.0,105290.0,0.1557784]
[1762789172704,0.25937674,105300.0,105290.0,0.1557784]
[1762789173204,0.16438734,105300.0,105290.0,0.1557784]
[1762789173403,0.12073734,105300.0,105290.0,0.1557784]
[1762789173609,0.25937674,105300.0,105290.0,0.1557784]
[1762789174211,0.25937674,105300.0,105290.0,0.06378]
[1762789175104,0.14097989,105300.0,105290.0,0.06378]
[1762789175305,0.25937674,105300.0,105290.0,0.1587785]
[1762789175812,0.25937674,105300.0,105290.0,0.06378]
[1762789177616,0.62017674,105300.0,105290.0,0.06378]
[1762789178311,0.62017674,105300.0,105290.0,0.1587784]
[1762789178814,0.00234049,105300.0,105290.0,0.1587784]
[1762789179517,0.16204685,105320.0,105310.0,0.1517604]
[1762789179718,0.00219803,105320.0,105310.0,0.5125604]
[1762789180215,0.3608,105350.0,105340.0,0.05678]
[1762789180411,0.4557392,105360.0,105350.0,0.1517243]
[1762789180412,0.04365,105360.0,105350.0,0.1517243]
[1762789180611,0.00073267,105360.0,105350.0,0.51472233]
[1762789181705,0.36094246,105370.0,105360.0,0.1390653]
[1762789181911,0.36167513,105370.0,105360.0,0.14126333]
[1762789182519,0.38431513,105370.0,105360.0,0.1507664]
[1762789182721,0.47924143,105370.0,105360.0,0.1507664]
[1762789182916,0.3608,105390.0,105380.0,0.1390473]
[1762789183112,0.00073267,105390.0,105380.0,0.50204533]
[1762789183417,0.00073267,105390.0,105380.0,0.14124533]
[1762789183820,0.00073267,105390.0,105380.0,0.50204533]
[1762789184018,0.36094246,105400.0,105380.0,0.50204533]
[1762789184218,0.00087513,105400.0,105390.0,0.4998383]
[1762789184412,0.00014246,105400.0,105390.0,0.50203633]
[1762789184713,0.5068812,105420.0,105410.0,0.04413]
[1762789185015,0.62601072,105420.0,105410.0,0.04632803]
[1762789186213,0.17032952,105420.0,105410.0,0.14121833]
[1762789186412,0.16277952,105420.0,105410.0,0.14121833]
[1762789186809,0.16777952,105420.0,105410.0,0.14121833]
[1762789187011,0.26266082,105420.0,105410.0,0.04632803]
[1762789187211,0.64250082,105420.0,105410.0,0.04732803]
[1762789187616,0.17377952,105420.0,105410.0,0.14221833]
[1762789188310,0.26866082,105420.0,105410.0,0.14221833]
[1762789188510,0.26866082,105420.0,105410.0,0.04732803]
[1762789188711,0.17377952,105420.0,105410.0,0.14221833]
[1762789189413,0.17377952,105420.0,105410.0,0.50301833]
[1762789189619,0.011,105420.0,105410.0,0.74017833]
[1762789189918,0.18705952,105420.0,105410.0,0.14221833]
[1762789190119,0.27694082,105420.0,105410.0,0.04632803]
[1762789190319,0.27194082,105420.0,105410.0,0.04632803]
[1762789190511,0.27294082,105420.0,105410.0,0.04632803]
[1762789190913,0.63374082,105420.0,105410.0,0.02405803]
[1762789191324,0.16409952,105420.0,105410.0,0.14182833]
[1762789191526,0.25898082,105420.0,105410.0,0.14182833]
[1762789192017,0.25898082,105420.0,105410.0,0.04693803]
[1762789192219,0.53885952,105420.0,105410.0,0.14182833]
[1762789192408,0.27294082,105420.0,105410.0,0.04693803]
[1762789193719,0.23722072,105420.0,105410.0,0.04693803]
[1762789194023,0.25898072,105420.0,105410.0,0.14182823]
[1762789194325,0.25898072,105420.0,105410.0,0.50262823]
[1762789194515,0.25898072,105420.0,105410.0,0.04693803]
[1762789194716,0.25898072,105420.0,105410.0,0.50262833]
[1762789194914,0.25898072,105420.0,105410.0,0.40773803]
[1762789195116,0.25898072,105420.0,105410.0,0.14182833]
[1762789195523,0.00273267,105420.0,105410.0,0.50262833]
[1762789195822,0.12112952,105420.0,105410.0,0.50262833]
[1762789197116,0.23711082,105420.0,105410.0,0.50262833]
[1762789197313,0.12112952,105420.0,105410.0,0.50262833]
[1762789197718,0.00273267,105420.0,105410.0,0.50262833]
[1762789197923,0.00273267,105420.0,105410.0,0.73978833]
[1762789198112,0.00273267,105420.0,105410.0,0.50262833]
[1762789198512,0.002,105420.0,105410.0,0.50262833]
[1762789198821,0.00273267,105420.0,105410.0,0.50262833]
[1762789199014,0.21601082,105420.0,105410.0,0.50262833]
[1762789199219,0.23711082,105420.0,105410.0,0.50262833]
[1762789200217,0.12112952,105420.0,105410.0,0.50262833]
[1762789200414,0.27205082,105420.0,105410.0,0.36299803]
[1762789200621,0.63285082,105420.0,105410.0,0.00219803]
[1762789201429,0.63285082,105420.0,105410.0,0.02384803]
[1762789201724,0.62024082,105420.0,105410.0,0.14122823]
[1762789202320,0.63285082,105420.0,105410.0,0.14122823]
[1762789202721,0.62024082,105420.0,105410.0,0.14122823]
[1762789202922,0.59791072,105420.0,105410.0,0.14122823]
[1762789203122,0.63285072,105420.0,105410.0,0.04633803]
[1762789203827,0.63285072,105420.0,105410.0,0.14122823]
[1762789204229,0.63285072,105420.0,105410.0,0.04633803]
[1762789204430,0.63285072,105420.0,105410.0,0.00219803]
[1762789204620,0.1383203,105410.0,105400.0,0.00014246]
[1762789204820,0.1383383,105390.0,105380.0,0.05509]
[1762789205021,0.61826782,105390.0,105380.0,0.00219803]
[1762789205216,0.1383563,105370.0,105360.0,0.05364307]
[1762789205429,0.25748582,105370.0,105360.0,0.1507764]
[1762789205628,0.61828582,105370.0,105360.0,0.1507764]
[1762789206022,0.25748582,105370.0,105360.0,0.1507764]
[1762789206632,0.61828582,105370.0,105360.0,0.0333511]
[1762789206928,0.61828582,105370.0,105360.0,0.0117011]
[1762789207122,0.1509753,105360.0,105350.0,0.09508666]
[1762789207330,0.57485582,105370.0,105350.0,0.09728469]
[1762789207331,0.3608,105370.0,105350.0,0.09728469]
[1762789207528,0.52276931,105380.0,105370.0,0.1390663]
[1762789207832,0.61841928,105380.0,105370.0,0.14126433]
[1762789208533,0.52350198,105380.0,105370.0,0.14126433]
[1762789208927,0.00014246,105380.0,105370.0,0.50206433]
[1762789209132,0.001,105390.0,105380.0,0.1516866]
[1762789209324,0.00173267,105390.0,105380.0,0.51468463]
[1762789209523,0.02283267,105390.0,105380.0,0.15388463]
[1762789209729,0.00173267,105390.0,105380.0,0.51468463]
[1762789209926,0.00073267,105390.0,105380.0,0.51468463]
[1762789210524,0.00773267,105390.0,105380.0,0.51468463]
[1762789210729,0.007,105390.0,105380.0,0.51468463]
[1762789211429,0.007,105390.0,105380.0,0.75192463]
[1762789211633,0.007,105390.0,105380.0,0.81837328]
[1762789212131,0.4682964,105420.0,105380.0,0.81837328]
[1762789212132,0.4991088,105430.0,105420.0,0.04414]
[1762789212325,0.16255952,105430.0,105420.0,0.14121863]
[1762789212526,0.16255952,105430.0,105420.0,0.15384863]
[1762789213633,0.26043112,105430.0,105420.0,0.05896803]
[1762789214226,0.26443112,105430.0,105420.0,0.15384863]
[1762789215235,0.26443112,105430.0,105420.0,0.05896803]
[1762789216031,0.26443112,105430.0,105420.0,0.15384863]
[1762789216424,0.26443112,105430.0,105420.0,0.05896803]
[1762789216934,0.3193723,105430.0,105420.0,0.04633803]
[1762789217124,0.14603427,105430.0,105420.0,0.04633803]
[1762789217330,0.3193723,105430.0,105420.0,0.14121863]
[1762789217737,0.3193723,105430.0,105420.0,0.15384863]
[1762789218034,0.1509206,105420.0,105410.0,0.04428246]
[1762789218234,0.1509206,105420.0,105410.0,0.00234049]
[1762789218235,0.6857913,105420.0,105410.0,0.00234049]
[1762789218426,0.6857913,105420.0,105410.0,2.46e-06]
[1762789219641,0.6877913,105420.0,105410.0,2.46e-06]
[1762789219836,0.6887913,105420.0,105410.0,2.46e-06]
[1762789220032,0.1531186,105400.0,105390.0,0.3608]
[1762789220335,0.3271893,105400.0,105390.0,0.00219803]
[1762789220540,0.3271893,105400.0,105390.0,0.02431803]
[1762789221141,0.6879893,105400.0,105390.0,0.00219803]
[1762789221637,0.00073267,105400.0,105390.0,0.50341573]
[1762789221839,0.11642216,105410.0,105400.0,0.05788]
[1762789222140,0.67449286,105410.0,105400.0,0.00219803]
[1762789222344,0.31369286,105410.0,105400.0,0.09709673]
[1762789222733,0.14035483,105410.0,105400.0,0.14160673]
[1762789222938,0.31369286,105410.0,105400.0,0.14160673]
[1762789223338,0.21880316,105410.0,105400.0,0.14160673]
[1762789223541,0.31369286,105410.0,105400.0,0.14160673]
[1762789224244,0.21880316,105410.0,105400.0,0.14160673]
[1762789224544,0.31369286,105410.0,105400.0,0.14160673]
[1762789224740,0.29049286,105410.0,105400.0,0.15497673]
[1762789224941,0.67449286,105410.0,105400.0,0.00219803]
[1762789225243,0.1394977,105390.0,105380.0,0.00014246]
[1762789225433,0.65158062,105390.0,105380.0,0.00234049]
[1762789225742,0.67297062,105390.0,105380.0,0.00234049]
[1762789226533,0.67297062,105390.0,105380.0,0.00014246]
[1762789226744,0.04459,105360.0,105350.0,0.22507479]
[1762789226938,0.2186607,105360.0,105350.0,0.51174819]
[1762789227344,0.67895503,105380.0,105370.0,0.1394357]
[1762789227542,0.40612267,105380.0,105370.0,0.14163373]
[1762789227841,0.04673246,105390.0,105380.0,0.1527967]
[1762789228142,0.00287513,105390.0,105380.0,0.15499473]
[1762789228342,0.00287513,105390.0,105380.0,0.51579473]
[1762789229349,0.00087513,105390.0,105380.0,0.51579473]
[1762789229646,0.04546513,105390.0,105380.0,0.51679473]
[1762789229848,0.14037283,105390.0,105380.0,0.51679473]
[1762789230038,0.14037283,105390.0,105380.0,0.51779473]
[1762789231744,0.02226513,105390.0,105380.0,0.51779473]
[1762789232147,0.11717283,105390.0,105380.0,0.51779473]
[1762789232651,0.02226513,105390.0,105380.0,0.51779473]
[1762789232850,0.00087513,105390.0,105380.0,0.51779473]
[1762789233241,0.09578283,105390.0,105380.0,0.51779473]
[1762789233443,0.04546513,105390.0,105380.0,0.51779473]
[1762789233643,0.00087513,105390.0,105380.0,0.51779473]
[1762789233942,0.67362263,105410.0,105400.0,0.05788]
[1762789234151,0.6743553,105410.0,105400.0,0.15497643]
[1762789234645,0.2186607,105410.0,105400.0,0.51577643]
[1762789234851,0.3135501,105410.0,105400.0,0.51577643]
[1762789235550,0.3155501,105410.0,105400.0,0.51577643]
[1762789236552,0.3165501,105410.0,105400.0,0.51577643]
[1762789236943,0.3145501,105410.0,105400.0,0.51577643]
[1762789237343,0.3135501,105410.0,105400.0,0.06007803]
[1762789237947,0.3135501,105410.0,105400.0,0.51577643]
[1762789238646,0.3135501,105410.0,105400.0,0.38511803]